bitfinex/quotes_BTCUSD_20251224
["timestamp","ask_amount","ask_price","bid_price","bid_amount"]
[1766544628631,1.30316,87148.0,87126.0,0.02303763]
[1766544628792,1.30316,87148.0,87134.0,0.12413222]
[1766544629999,0.0002844,87136.0,87134.0,0.12413222]
[1766544630232,0.01156,87144.0,87134.0,0.12413222]
[1766544630390,0.000266,87134.0,87120.0,0.12413222]
[1766544630591,0.000266,87134.0,87121.0,0.01156]
[1766544630798,0.000266,87134.0,87121.0,0.02303828]
[1766544631002,1.22205,87137.0,87121.0,0.02303828]
[1766544631405,1.22205,87137.0,87122.0,0.01147815]
[1766544631587,1.22205,87137.0,87123.0,0.01147802]
[1766544631789,1.22205,87137.0,87126.0,0.01147763]
[1766544632194,1.22205,87137.0,87127.0,0.01147749]
[1766544632396,1.22205,87137.0,87128.0,0.0103383]
[1766544632951,1.22205,87151.0,87134.0,0.12413222]
[1766544633147,1.22205,87151.0,87137.0,0.000549]
[1766544633148,0.01156,87150.0,87137.0,0.000549]
[1766544633444,0.01156,87149.0,87137.0,0.000549]
[1766544633604,0.01156,87149.0,87138.0,0.01156]
[1766544633805,0.01156,87149.0,87138.0,0.77068]
[1766544634004,0.01156,87156.0,87140.0,0.72404]
[1766544634645,0.01156,87157.0,87140.0,0.71142578]
[1766544635051,0.01156,87157.0,87141.0,0.68839]
[1766544635250,0.01156,87157.0,87139.0,0.68839]
[1766544635991,0.03444457,87166.0,87139.0,0.68839]
[1766544635992,1.22205,87158.0,87139.0,0.68839]
[1766544636291,0.00041037,87140.0,87138.0,0.01156]
[1766544636510,1.22205,87156.0,87138.0,0.02303604]
[1766544637991,1.22205,87156.0,87139.0,0.01147591]
[1766544638401,1.22205,87156.0,87140.0,0.01147578]
[1766544638575,1.22205,87156.0,87141.0,0.06885389]
[1766544638893,1.22205,87156.0,87148.0,0.12413222]
[1766544639515,1.22205,87156.0,87148.0,0.12372222]
[1766544639710,1.22205,87156.0,87144.0,0.01156]
[1766544639871,1.22205,87156.0,87148.0,0.12413222]
[1766544640071,1.22240766,87156.0,87148.0,0.12413222]
[1766544640292,0.00035766,87156.0,87148.0,0.12413222]
[1766544640499,0.03444318,87172.0,87156.0,0.000357]
[1766544640500,0.01156,87167.0,87156.0,0.000357]
[1766544640710,0.01166726,87167.0,87156.0,0.000357]
[1766544640917,0.01166726,87167.0,87150.0,0.53329867]
[1766544641129,1.27853726,87167.0,87150.0,0.01156]
[1766544641271,1.27853726,87167.0,87150.0,0.01101]
[1766544641693,1.26687,87159.0,87150.0,0.01101]
[1766544642904,1.26687,87159.0,87148.0,0.01156]
[1766544644477,1.26687,87159.0,87148.0,0.01119214]
[1766544644637,1.26687,87159.0,87148.0,2.14e-06]
[1766544645374,0.01147354,87157.0,87129.0,0.04592]
[1766544645581,0.01147328,87159.0,87134.0,0.13560879]
[1766544645582,1.26687,87149.0,87134.0,0.13560879]
[1766544645900,1.26687,87159.0,87137.0,0.01147618]
[1766544646053,0.01156,87158.0,87139.0,0.69494]
[1766544646260,1.27843,87158.0,87139.0,0.69494]
[1766544646861,0.00034669,87151.0,87139.0,0.69494]
[1766544647199,0.00025222,87148.0,87138.0,0.01156]
[1766544648573,1.26687,87147.0,87138.0,0.01156]
[1766544649426,1.26687,87147.0,87140.0,0.01147578]
[1766544649670,0.00025222,87148.0,87142.0,0.01147552]
[1766544649867,1.27843,87156.0,87142.0,0.01147552]
[1766544650284,1.27843,87156.0,87141.0,0.01147565]
[1766544650477,1.27843,87156.0,87142.0,0.01147552]
[1766544650679,1.27843,87156.0,87143.0,0.01147539]
[1766544651185,1.27843,87156.0,87144.0,0.01147525]
[1766544651326,1.27843,87156.0,87145.0,0.01147512]
[1766544651529,1.27843,87156.0,87146.0,0.01147499]
[1766544651927,1.27843,87156.0,87147.0,0.01147486]
[1766544652280,1.26687,87156.0,87146.0,0.01147499]
[1766544652484,0.00010726,87167.0,87150.0,0.12413222]
[1766544652685,0.01166726,87167.0,87156.0,0.000298]
[1766544652886,1.26687,87165.0,87148.0,0.12413222]
[1766544653110,0.00025185,87156.0,87148.0,0.12413222]
[1766544653319,0.00025185,87156.0,87147.0,0.01147486]
[1766544653561,1.26687,87155.0,87146.0,0.01156]
[1766544653742,1.26687,87155.0,87139.0,0.01147591]
[1766544653743,0.000251,87147.0,87142.0,0.01156]
[1766544653941,0.52173867,87152.0,87143.0,0.0103368]
[1766544654143,1.26687,87155.0,87143.0,0.0103368]
[1766544655146,1.26687,87152.0,87143.0,0.0103368]
[1766544655622,0.000251,87143.0,87138.0,0.01156]
[1766544656111,1.26687,87149.0,87138.0,0.01156]
[1766544656652,1.26687,87149.0,87140.0,0.01147578]
[1766544657010,0.01156,87150.0,87149.0,0.000298]
[1766544657357,0.01156,87150.0,87143.0,0.01147539]
[1766544657358,0.00025185,87156.0,87145.0,0.01147512]
[1766544657576,0.00025185,87156.0,87146.0,0.01147499]
[1766544657732,0.01181185,87156.0,87144.0,0.01147525]
[1766544657936,0.4,87151.0,87143.0,0.01147539]
[1766544658257,0.399702,87151.0,87144.0,0.01156]
[1766544658886,0.39079822,87151.0,87145.0,0.01147512]
[1766544659517,0.39079822,87151.0,87144.0,0.01156]
[1766544659753,0.39079822,87151.0,87144.0,0.02303525]
[1766544659902,0.39079822,87151.0,87145.0,0.01147512]
[1766544660107,0.38637485,87151.0,87145.0,0.01147512]
[1766544660318,4.85e-06,87151.0,87148.0,0.01147473]
[1766544660729,0.04602726,87167.0,87157.0,0.32757354]
[1766544660730,0.00010726,87167.0,87157.0,0.32757354]
[1766544660939,0.00010726,87167.0,87149.0,0.12413222]
[1766544660940,1.21937726,87167.0,87151.0,0.02303433]
[1766544661140,1.21937726,87167.0,87152.0,0.0114742]
[1766544661357,1.21937726,87167.0,87156.0,0.01147367]
[1766544661594,1.21937726,87167.0,87156.0,0.06884197]
[1766544661793,1.21937726,87167.0,87159.0,0.01147328]
[1766544661794,1.23093726,87167.0,87159.0,0.01147328]
[1766544662102,0.01166726,87167.0,87161.0,0.01147302]
[1766544662273,0.00010726,87167.0,87159.0,0.01147328]
[1766544662481,0.00010726,87167.0,87161.0,0.01147302]
[1766544662642,0.00010726,87167.0,87162.0,0.01147288]
[1766544663255,0.04592,87179.0,87162.0,0.01147288]
[1766544663256,0.01156,87178.0,87166.0,0.01147236]
[1766544663683,0.01156,87178.0,87169.0,0.01147196]
[1766544664264,1.21967,87184.0,87171.0,0.0114717]
[1766544664463,1.23083,87182.0,87171.0,0.0114717]
[1766544665294,1.23083,87182.0,87172.0,0.01147157]
[1766544665498,1.23083,87182.0,87169.0,0.01156]
[1766544665499,0.000549,87172.0,87169.0,0.01156]
[1766544665703,0.000549,87172.0,87169.0,0.02303196]
[1766544665919,1.23083,87182.0,87171.0,0.0114717]
[1766544666133,1.23083,87182.0,87172.0,0.01147157]
[1766544666352,1.23083,87182.0,87171.0,0.0114717]
[1766544666597,0.00053511,87173.0,87169.0,0.01156]
[1766544666778,1.23083,87182.0,87170.0,0.01147183]
[1766544666996,1.23083,87182.0,87171.0,0.0114717]
[1766544667204,1.23083,87182.0,87170.0,0.01147183]
[1766544667414,1.23083,87182.0,87169.0,0.02303196]
[1766544667628,1.23083,87182.0,87171.0,0.0114717]
[1766544667842,1.23083,87182.0,87172.0,0.01147157]
[1766544668060,1.23083,87182.0,87171.0,0.0114717]
[1766544668523,1.23083,87182.0,87171.0,0.06882977]
[1766544668739,1.23083,87182.0,87172.0,0.01147157]
[1766544668929,1.23083,87182.0,87173.0,0.01147144]
[1766544669290,1.21927,87182.0,87173.0,0.01147144]
[1766544669492,1.21927,87182.0,87174.0,0.01147131]
[1766544669694,1.21927,87182.0,87175.0,0.01147117]
[1766544670300,1.21927,87182.0,87174.0,0.01147131]
[1766544670503,1.21927,87182.0,87172.0,0.01147157]
[1766544670933,1.21927,87182.0,87173.0,0.01147144]
[1766544671306,1.21927,87182.0,87169.0,0.02303196]
[1766544671994,1.21927,87182.0,87172.0,0.01147157]
[1766544672657,1.21927,87182.0,87174.0,0.01147131]
[1766544672862,0.00059805,87175.0,87174.0,0.01147131]
[1766544673407,0.00059805,87175.0,87172.0,0.01147157]
[1766544673589,1.21927,87182.0,87176.0,0.01147104]
[1766544673790,1.21927,87182.0,87177.0,0.05735457]
[1766544673951,1.21927,87182.0,87177.0,0.01147091]
[1766544674166,1.21927,87182.0,87176.0,0.01147104]
[1766544674366,0.0004,87183.0,87176.0,0.01147104]
[1766544674612,0.000549,87176.0,87175.0,0.02303117]
[1766544674850,0.000549,87176.0,87175.0,0.01156]
[1766544675052,1.21927,87182.0,87176.0,0.06882627]
[1766544675205,1.21927,87182.0,87175.0,0.01156]
[1766544675411,1.21927,87182.0,87178.0,0.01147078]
[1766544675834,0.0004,87183.0,87178.0,0.01147078]
[1766544676062,0.0004,87184.0,87182.0,0.12413222]
[1766544676262,1.21927,87197.0,87185.0,0.01146986]
[1766544676457,1.21927,87197.0,87184.0,0.01146999]
[1766544676458,0.01156,87190.0,87184.0,0.01146999]
[1766544676642,0.01156,87190.0,87183.0,0.01147012]
[1766544677222,0.01156,87190.0,87184.0,0.01146999]
[1766544677422,0.01196,87194.0,87189.0,0.01146933]
[1766544677647,0.0004,87194.0,87188.0,0.01146946]
[1766544677852,0.01196,87193.0,87188.0,0.01146946]
[1766544678090,0.0004,87194.0,87188.0,0.01146946]
[1766544678091,1e-08,87194.0,87191.0,0.06881443]
[1766544678255,1.21927,87205.0,87194.0,0.01146867]
[1766544679022,0.00062925,87195.0,87193.0,0.01146881]
[1766544679229,1.21927,87205.0,87192.0,0.01146894]
[1766544679642,1.21927,87205.0,87193.0,0.01146881]
[1766544679893,1.21927,87205.0,87194.0,0.01146867]
[1766544680096,1.21967,87201.0,87195.0,0.01146854]
[1766544680319,1.21967,87201.0,87192.0,0.01146894]
[1766544680539,1.21967,87201.0,87191.0,0.02302907]
[1766544680540,0.00055,87192.0,87191.0,0.01156]
[1766544680734,1.03883348,87194.0,87190.0,0.0114692]
[1766544680909,1.03883348,87194.0,87189.0,0.01156]
[1766544681156,0.01196,87201.0,87189.0,0.01156]
[1766544681283,1.23123,87201.0,87190.0,0.0114692]
[1766544681501,1.23123,87201.0,87192.0,0.01146894]
[1766544681926,1.23123,87201.0,87191.0,0.01146907]
[1766544682360,1.23123,87201.0,87190.0,0.0114692]
[1766544682561,1.23123,87201.0,87189.0,0.01156]
[1766544682762,1.23123,87201.0,87189.0,0.02302933]
[1766544682966,1.23123,87201.0,87191.0,0.01146907]
[1766544683216,1.23123,87201.0,87189.0,0.01146933]
[1766544683417,0.000549,87191.0,87189.0,0.01156]
[1766544683653,0.01196,87201.0,87190.0,0.0114692]
[1766544683835,0.01196,87201.0,87190.0,0.5475492]
[1766544683989,0.01196,87201.0,87190.0,0.53608]
[1766544684182,1.21927,87200.0,87189.0,0.02302933]
[1766544684404,0.00059779,87194.0,87189.0,0.02302933]
[1766544684607,0.00047194,87190.0,87185.0,0.06881917]
[1766544684848,0.00047194,87190.0,87185.0,0.00010722]
[1766544685108,1.21927,87195.0,87187.0,0.01146959]
[1766544685525,1.21927,87195.0,87188.0,0.01146946]
[1766544685931,1.21927,87195.0,87187.0,0.01146959]
[1766544686265,1.21927,87186.0,87177.0,0.01156]
[1766544686561,1.21927,87186.0,87171.0,0.01156]
[1766544686862,1.21927,87186.0,87170.0,0.01156]
[1766544687061,1.21927,87186.0,87170.0,0.02303183]
[1766544687263,1.21927,87186.0,87170.0,0.01156]
[1766544687685,1.21927,87186.0,87170.0,0.02303183]
[1766544688480,1.21927,87186.0,87170.0,0.01156]
[1766544688946,1.21927,87186.0,87170.0,0.01128652]
[1766544689372,0.00055,87170.0,87168.0,0.01156]
[1766544689653,1.234,87179.0,87160.0,0.54141]
[1766544689654,1.234,87179.0,87161.0,0.01156]
[1766544690102,1.234,87179.0,87162.0,0.01147288]
[1766544690271,1.234,87179.0,87161.0,0.02303302]
[1766544690451,1.234,87179.0,87161.0,0.01156]
[1766544690880,1.234,87179.0,87161.0,0.02303302]
[1766544691076,1.234,87179.0,87161.0,0.01156]
[1766544691278,1.234,87179.0,87161.0,0.02303302]
[1766544691484,1.234,87179.0,87161.0,0.01156]
[1766544694813,1.234,87179.0,87164.0,0.01147262]
[1766544695271,1.234,87179.0,87166.0,0.01147236]
[1766544696007,1.234,87179.0,87167.0,0.01147223]
[1766544696208,1.234,87179.0,87168.0,0.01147209]
[1766544696370,1.234,87179.0,87167.0,0.01147223]
[1766544696774,1.234,87179.0,87168.0,0.01147209]
[1766544697191,1.234,87179.0,87167.0,0.01147223]
[1766544697393,1.234,87179.0,87168.0,0.01147209]
[1766544697796,0.01156,87178.0,87166.0,0.01147236]
[1766544697996,0.01156,87178.0,87167.0,0.01147223]
[1766544698216,0.01156,87178.0,87166.0,0.01147236]
[1766544698422,1.29873,87178.0,87166.0,0.01147236]
[1766544698783,1.29873,87178.0,87167.0,0.01147223]
[1766544699701,1.29873,87178.0,87168.0,0.01147209]
[1766544699907,1.29873,87178.0,87169.0,0.01147196]
[1766544700311,1.29873,87178.0,87168.0,0.01147209]
[1766544700471,1.29873,87178.0,87165.0,0.01147249]
[1766544700675,1.29873,87178.0,87164.0,0.01147262]
[1766544700900,1.29873,87178.0,87165.0,0.01147249]
[1766544701098,1.29873,87178.0,87166.0,0.01147236]
[1766544701300,1.29873,87178.0,87165.0,0.01147249]
[1766544701580,1.29873,87178.0,87166.0,0.01147236]
[1766544701872,1.29873,87178.0,87167.0,0.01147223]
[1766544702076,0.01156,87178.0,87169.0,0.01147196]
[1766544702276,0.00452309,87178.0,87172.0,0.05735786]
[1766544702492,0.00025167,87183.0,87172.0,0.05735786]
[1766544702493,0.01156,87181.0,87178.0,0.000549]
[1766544702643,0.00025167,87183.0,87180.0,0.01147052]
[1766544702959,0.00025167,87183.0,87181.0,0.05735128]
[1766544702960,1.67e-06,87183.0,87181.0,0.05735128]
[1766544703104,1.67e-06,87183.0,87180.0,0.068823]
[1766544703508,0.03443128,87205.0,87180.0,0.068823]
[1766544703509,1.28717,87213.0,87187.0,0.52994]
[1766544703804,0.00050718,87201.0,87194.0,0.01146867]
[1766544704006,0.00050718,87201.0,87188.0,0.19303948]
[1766544704207,1.28767718,87201.0,87188.0,0.13569222]
[1766544704490,1.28767718,87201.0,87189.0,0.01146933]
[1766544705022,1.28767718,87201.0,87188.0,0.13569222]
[1766544705023,1.28767718,87201.0,87188.0,0.02302946]
[1766544705446,1.28767718,87201.0,87189.0,0.01146933]
[1766544705662,1.28767718,87201.0,87188.0,0.02302946]
[1766544706058,1.28767718,87201.0,87188.0,0.01156]
[1766544706269,1.28767718,87201.0,87188.0,0.02302946]
[1766544706758,1.28767718,87201.0,87188.0,0.01156]
[1766544706967,1.28767718,87201.0,87188.0,0.02302946]
[1766544707739,1.28767718,87201.0,87188.0,0.01156]
[1766544708870,0.00055,87188.0,87184.0,0.52702]
[1766544709045,1.28717,87187.0,87180.0,0.01156]
[1766544709245,1.28717,87187.0,87179.0,0.01147065]
[1766544710000,1.28717,87187.0,87180.0,0.01147052]
[1766544710247,1.28717,87187.0,87178.0,0.02303078]
[1766544710248,1.28717,87187.0,87178.0,0.01156]
[1766544710812,1.28717,87187.0,87180.0,0.01147052]
[1766544711327,1.28717,87187.0,87179.0,0.01147065]
[1766544711328,1.28717,87190.0,87179.0,0.01147065]
[1766544711530,1.28717,87190.0,87179.0,0.02303065]
[1766544712179,1.28717,87190.0,87180.0,0.01147052]
[1766544713033,1.28717,87190.0,87179.0,0.01156]
[1766544713351,1.28717,87190.0,87179.0,0.02303065]
[1766544713529,1.28717,87190.0,87179.0,0.01156]
[1766544713733,1.28717,87190.0,87179.0,0.02303065]
[1766544713932,1.28717,87190.0,87179.0,0.01156]
[1766544714314,1.28717,87190.0,87179.0,0.02303065]
[1766544714714,1.28717,87190.0,87180.0,0.01147052]
[1766544715095,1.28717,87190.0,87181.0,0.01147038]
[1766544715445,1.27505793,87190.0,87181.0,0.01147038]
[1766544715624,1.27505793,87190.0,87180.0,0.01147052]
[1766544715845,1.27505793,87190.0,87181.0,0.01147038]
[1766544716042,1.27505793,87190.0,87180.0,0.01147052]
[1766544716242,1.27505793,87190.0,87179.0,0.02303065]
[1766544716468,1.27505793,87190.0,87180.0,0.01147052]
[1766544716669,1.27505793,87190.0,87181.0,0.01147038]
[1766544716867,1.27505793,87190.0,87180.0,0.01147052]
[1766544717095,1.27505793,87190.0,87181.0,0.01147038]
[1766544719096,1.27505793,87190.0,87182.0,0.01147025]
[1766544719302,1.27505793,87190.0,87181.0,0.01147038]
[1766544719875,1.27505793,87190.0,87179.0,0.01156]
[1766544720343,1.22884,87189.0,87166.0,0.53505]
[1766544720553,1.22884,87189.0,87167.0,0.02303223]
[1766544721066,1.22884,87189.0,87167.0,0.01156]
[1766544721658,1.22884,87189.0,87167.0,0.02303223]
[1766544721859,1.22884,87189.0,87166.0,0.01147236]
[1766544722340,1.22884,87189.0,87167.0,0.01156]
[1766544722737,1.22884,87181.0,87168.0,0.01147209]
[1766544722947,0.00025169,87191.0,87181.0,0.000549]
[1766544722948,0.01156,87185.0,87181.0,0.000549]
[1766544723135,0.01156,87185.0,87170.0,0.05735915]
[1766544723136,0.01156,87189.0,87179.0,0.01147065]
[1766544723343,0.01156,87189.0,87185.0,0.00055]
[1766544723730,0.01156,87189.0,87180.0,0.01147052]
[1766544723932,0.01156,87189.0,87179.0,0.01147065]
[1766544724133,0.01156,87189.0,87177.0,0.02303091]
[1766544724342,0.01156,87189.0,87178.0,0.01147078]
[1766544724541,0.01156,87189.0,87177.0,0.01156]
[1766544724928,1.22884,87190.0,87177.0,0.02303091]
[1766544725222,1.22884,87189.0,87177.0,0.01156]
[1766544725766,1.22884,87189.0,87167.0,0.05736062]
[1766544725767,1.22884,87189.0,87163.0,0.05736375]
[1766544725973,1.22884,87179.0,87166.0,0.01156]
[1766544726782,1.22884,87179.0,87166.0,0.02303236]
[1766544727016,1.22884,87179.0,87166.0,0.01156]
[1766544727852,1.22884,87179.0,87167.0,0.01156]
[1766544729764,1.22884,87179.0,87160.0,0.01157315]
[1766544729968,1.22884,87179.0,87161.0,0.02303302]
[1766544730174,1.22884,87179.0,87161.0,0.01156]
[1766544730355,1.22884,87179.0,87161.0,0.02303302]
[1766544730537,1.22884,87179.0,87161.0,0.01156]
[1766544730949,1.22884,87179.0,87160.0,0.0001]
[1766544731130,1.22884,87170.0,87160.0,0.01166]
[1766544731327,1.22884,87170.0,87160.0,0.01156]
[1766544731525,1.22894,87170.0,87157.0,0.01156]
[1766544732345,1.22894,87170.0,87157.0,0.0231408]
[1766544732977,0.0001,87170.0,87157.0,0.5703708]
[1766544733160,0.0001,87170.0,87160.0,0.55870315]
[1766544733356,0.0001,87170.0,87160.0,0.54723]
[1766544734723,0.0001,87170.0,87157.0,0.0231408]
[1766544734724,1.22884,87169.0,87157.0,0.00010726]
[1766544734862,1.22884,87169.0,87155.0,0.01156]
[1766544735061,1.22894714,87169.0,87155.0,0.01156]
[1766544735468,1.22884,87164.0,87155.0,0.01156]
[1766544735868,1.22884,87162.0,87135.0,0.17001222]
[1766544736197,1.22884,87159.0,87140.0,0.01147578]
[1766544736924,1.22884,87159.0,87139.0,0.01147591]
[1766544737127,1.22884,87159.0,87141.0,0.01147565]
[1766544737822,1.22884,87159.0,87141.0,0.06885379]
[1766544737971,1.22884,87159.0,87142.0,0.01147552]
[1766544738171,1.22884,87159.0,87143.0,0.01156]
[1766544738766,1.22884,87159.0,87143.0,0.02303539]
[1766544739243,1.22884,87159.0,87143.0,0.01156]
[1766544742983,1.22884,87159.0,87146.0,0.01147499]
[1766544743157,1.228291,87159.0,87147.0,0.01147486]
[1766544743359,1.228291,87159.0,87149.0,0.13560682]
[1766544744347,1.22884,87168.0,87152.0,0.0114742]
[1766544744526,0.01156,87167.0,87155.0,0.54594]
[1766544744740,1.22884,87166.0,87152.0,0.0114742]
[1766544744930,1.22884,87166.0,87153.0,0.01147407]
[1766544745131,1.22884,87166.0,87154.0,0.01147394]
[1766544745342,1.22884,87166.0,87153.0,0.01147407]
[1766544745550,0.00010714,87169.0,87158.0,0.56826341]
[1766544745777,0.01156,87175.0,87166.0,0.00055]
[1766544745971,0.01156,87175.0,87161.0,0.55658]
[1766544746187,0.01156,87175.0,87161.0,0.56816016]
[1766544747041,0.01156,87175.0,87163.0,0.01147275]
[1766544748095,0.01156,87175.0,87161.0,0.56816016]
[1766544748096,0.000549,87163.0,87161.0,0.00010714]
[1766544748471,1.23094,87172.0,87161.0,0.00010714]
[1766544749330,0.000107,87161.0,87159.0,0.01156]
[1766544749507,0.000442,87159.0,87155.0,0.01156]
[1766544749707,0.00010716,87161.0,87155.0,0.01156]
[1766544749911,0.01156,87169.0,87155.0,0.01156]
[1766544750118,1.2425,87169.0,87155.0,0.01156]
[1766544751613,1.2425,87169.0,87155.0,0.02303381]
[1766544751835,1.2425,87169.0,87155.0,0.58443381]
[1766544752232,1.2425,87169.0,87156.0,0.01147367]
[1766544752594,1.2425,87169.0,87155.0,0.57296]
[1766544753486,1.2425,87169.0,87155.0,0.5614]
[1766544753831,1.2425,87169.0,87151.0,0.0001]
[1766544754041,1.2425,87169.0,87151.0,0.00020716]
[1766544754246,1.23094,87160.0,87151.0,0.00020716]
[1766544754669,1.23094,87160.0,87151.0,0.01168149]
[1766544754849,1.230391,87160.0,87151.0,0.00020716]
[1766544760769,1.230391,87160.0,87151.0,1.6e-07]
[1766544763242,0.01156,87159.0,87152.0,0.5484]
[1766544763462,1.21746,87169.0,87159.0,0.000757]
[1766544763667,1.21746,87169.0,87152.0,0.5598742]
[1766544763668,1.21746,87169.0,87152.0,0.5484]
[1766544763861,1.21746,87167.0,87152.0,0.5484]
[1766544764397,1.21746,87166.0,87152.0,0.5598742]
[1766544764575,0.01156,87165.0,87153.0,0.01147407]
[1766544764779,0.01156,87164.0,87153.0,0.13560629]
[1766544764987,1.21746,87166.0,87153.0,0.13560629]
[1766544765362,0.01156,87165.0,87153.0,0.13560629]
[1766544765567,1.21746,87166.0,87153.0,0.12413222]
[1766544765772,1.21746,87164.0,87151.0,0.01147449]
[1766544765978,0.01156,87163.0,87152.0,0.12413222]
[1766544767168,0.53315567,87170.0,87154.0,0.54215]
[1766544767384,0.53315567,87170.0,87156.0,0.52921]
[1766544767385,0.01156,87170.0,87156.0,0.52921]
[1766544767588,0.01156,87170.0,87157.0,0.01147354]
[1766544767797,0.01156,87170.0,87158.0,0.01147341]
[1766544768358,0.01156,87169.0,87156.0,0.54068367]
[1766544768716,0.01156,87169.0,87156.0,0.52921]
[1766544769376,1.22902,87169.0,87156.0,0.52921]
[1766544771517,1.22902,87169.0,87156.0,0.54068367]
[1766544772120,1.22902,87169.0,87156.0,0.52921]
[1766544772709,1.22902,87169.0,87156.0,0.54068367]
[1766544772913,1.22902,87169.0,87156.0,0.52921]
[1766544774761,0.01156,87169.0,87156.0,0.52921]
[1766544775015,0.01156,87169.0,87158.0,0.51683]
[1766544776920,0.56751567,87180.0,87159.0,0.00114438]
[1766544777123,0.03615607,87179.0,87160.0,0.49337]
[1766544777432,0.03625607,87179.0,87162.0,0.49337]
[1766544777906,0.03625607,87179.0,87161.0,0.01147302]
[1766544777907,0.52159567,87180.0,87163.0,0.01147275]
[1766544778106,0.04590843,87190.0,87168.0,0.01147209]
[1766544778107,0.01156,87181.0,87168.0,0.01147209]
[1766544778305,0.01156,87182.0,87168.0,0.01147209]
[1766544778809,0.63106308,87190.0,87166.0,0.01147236]
[1766544778810,1.85918308,87190.0,87166.0,0.01147236]
[1766544778990,1.2856,87189.0,87166.0,0.01147236]
[1766544779376,1.2856,87189.0,87167.0,0.12413222]
[1766544779585,1.2856,87189.0,87167.0,0.13560445]
[1766544779783,1.2856,87189.0,87168.0,0.01147209]
[1766544779983,1.2856,87189.0,87170.0,0.52159567]
[1766544780189,1.2856,87189.0,87172.0,0.01147157]
[1766544780407,1.2856,87189.0,87173.0,0.01147144]
[1766544780656,1.2856,87189.0,87170.0,0.52159567]
[1766544781001,1.2856,87189.0,87169.0,0.01156]
[1766544781205,1.2856,87189.0,87170.0,0.52159567]
[1766544781383,1.2856,87189.0,87169.0,0.01156]
[1766544781589,1.2856,87189.0,87170.0,0.52159567]
[1766544781788,1.2856,87189.0,87166.0,0.01147236]
[1766544781789,0.000549,87170.0,87160.0,0.53306882]
[1766544782141,0.000549,87170.0,87162.0,0.01147288]
[1766544782303,1.27404,87176.0,87163.0,0.01156]
[1766544783108,1.27404,87176.0,87163.0,0.02303275]
[1766544783306,1.27404,87176.0,87165.0,0.01147249]
[1766544783680,1.27404,87188.0,87168.0,0.01147209]
[1766544783915,1.27404,87188.0,87169.0,0.01156]
[1766544784091,1.27404,87188.0,87171.0,0.0114717]
[1766544784311,1.27404,87188.0,87173.0,0.01147144]
[1766544784630,1.2856,87188.0,87176.0,0.01147104]
[1766544784835,1.2856,87188.0,87176.0,0.02303104]
[1766544785198,1.2856,87188.0,87176.0,0.01156]
[1766544786025,0.00025169,87191.0,87188.0,0.00055]
[1766544786414,0.00025169,87191.0,87184.0,0.01146999]
[1766544787016,6.9e-07,87191.0,87183.0,0.02303012]
[1766544787222,0.00010793,87191.0,87183.0,0.02303012]
[1766544787857,0.00010793,87191.0,87183.0,0.01156]
[1766544788223,0.00010793,87191.0,87183.0,0.02303012]
[1766544788561,0.00010793,87191.0,87183.0,0.01156]
[1766544789606,0.00010793,87191.0,87183.0,0.02303012]
[1766544789809,0.00010793,87191.0,87185.0,0.01146986]
[1766544790071,0.00010793,87191.0,87184.0,0.01146999]
[1766544790631,0.00010793,87191.0,87183.0,0.01156]
[1766544790865,0.00010793,87191.0,87183.0,0.06891059]
[1766544791214,1.27444,87207.0,87186.0,0.01146973]
[1766544791342,0.01156,87204.0,87185.0,0.01146986]
[1766544791537,1.27444,87201.0,87184.0,0.12413222]
[1766544792198,1.27444,87201.0,87184.0,0.13560221]
[1766544792358,1.27444,87201.0,87184.0,0.12413222]
[1766544792786,1.27444,87201.0,87184.0,0.13560221]
[1766544793336,1.27444,87201.0,87185.0,0.01146986]
[1766544793720,1.27444,87201.0,87186.0,0.01146973]
[1766544794304,1.27444,87201.0,87184.0,0.12413222]
[1766544794732,1.27444,87201.0,87183.0,0.01156]
[1766544795133,1.27444,87201.0,87184.0,0.01146999]
[1766544795449,0.00025,87184.0,87183.0,0.01156]
[1766544795657,1.27404,87196.0,87183.0,0.01156]
[1766544795871,1.27404,87196.0,87183.0,0.02303012]
[1766544796748,1.27404,87196.0,87184.0,0.01146999]
[1766544796930,1.27404,87196.0,87183.0,0.02303012]
[1766544797136,1.27404,87196.0,87184.0,0.01146999]
[1766544797343,1.27404,87196.0,87185.0,0.01146986]
[1766544797543,1.27404,87196.0,87183.0,0.02303012]
[1766544797761,1.27404,87196.0,87183.0,0.01156]
[1766544797998,1.27404,87196.0,87183.0,0.02303012]
[1766544798344,1.27404,87196.0,87183.0,0.01156]
[1766544798702,1.27404,87196.0,87179.0,0.0573526]
[1766544798703,0.0004,87201.0,87166.0,0.17001222]
[1766544798704,1.27404,87182.0,87166.0,0.17001222]
[1766544798830,1.27404,87182.0,87170.0,0.55387494]
[1766544799514,1.27404,87182.0,87167.0,0.01156]
[1766544799722,1.27404,87182.0,87167.0,0.02303223]
[1766544799854,1.27404,87182.0,87168.0,0.01147209]
[1766544800182,1.27404,87182.0,87167.0,0.01156]
[1766544800961,1.27404,87182.0,87168.0,0.01156]
[1766544801674,1.27404,87182.0,87170.0,0.01147183]
[1766544801924,1.27404,87182.0,87172.0,0.01147157]
[1766544802084,1.27404,87182.0,87173.0,0.01147144]
[1766544802286,1.27404,87182.0,87172.0,0.01147157]
[1766544802494,1.27404,87182.0,87171.0,0.0114717]
[1766544802693,1.27404,87182.0,87172.0,0.01147157]
[1766544803114,1.27404,87182.0,87171.0,0.0114717]
[1766544803288,0.01156,87183.0,87172.0,0.13560379]
[1766544803504,0.01156,87188.0,87169.0,0.01147196]
[1766544803701,1.2856,87188.0,87169.0,0.01147196]
[1766544803900,1.2856,87188.0,87170.0,0.56534677]
[1766544804107,1.2856,87188.0,87171.0,0.0114717]
[1766544804624,1.2856,87188.0,87168.0,0.02303209]
[1766544804860,1.2856,87188.0,87169.0,0.12413222]
[1766544807623,1.2856,87188.0,87169.0,0.13560418]
[1766544807841,1.2856,87188.0,87171.0,0.0114717]
[1766544808264,1.2856,87188.0,87170.0,0.01147183]
[1766544808469,1.2856,87188.0,87171.0,0.0114717]
[1766544808694,1.2856,87188.0,87170.0,0.01147183]
[1766544809610,1.2856,87188.0,87171.0,0.0114717]
[1766544809951,1.2856,87188.0,87170.0,0.01147183]
[1766544810318,1.2856,87188.0,87169.0,0.13560418]